bitfinex-derivatives/quotes_ETHF0:USTF0_20250704
["timestamp","ask_amount","ask_price","bid_price","bid_amount"]
[1751624410815,36.33244,2548.7,2548.6,0.93798519]
[1751624411122,35.548,2548.7,2548.6,0.93798519]
[1751624411423,0.78444,2548.8,2548.7,0.78443]
[1751624411618,0.78444,2548.7,2548.6,0.15351519]
[1751624412023,36.36144,2548.7,2548.6,0.93798519]
[1751624412724,0.78443,2548.8,2548.7,0.78441]
[1751624412922,36.36843,2548.8,2548.7,0.78441]
[1751624413124,35.584,2548.8,2548.7,0.78441]
[1751624413519,0.78441,2548.8,2548.7,0.78441]
[1751624413726,36.37041,2548.8,2548.7,0.78441]
[1751624414025,35.586,2548.8,2548.7,0.78441]
[1751624415228,36.37041,2548.8,2548.7,0.78441]
[1751624415728,35.586,2548.8,2548.7,0.78441]
[1751624416724,4.6538,2548.9,2548.8,0.78441]
[1751624416926,40.2358,2548.9,2548.8,0.78441]
[1751624417326,39.4514,2548.9,2548.8,0.78441]
[1751624417623,3.2078,2548.9,2548.8,0.78441]
[1751624417824,38.7868,2548.9,2548.8,0.78441]
[1751624418521,59.6798,2549.2,2549.1,0.78432]
[1751624418827,39.57309,2549.2,2549.1,0.78432]
[1751624419526,40.90329,2549.2,2549.0,0.78433]
[1751624419916,40.119,2549.2,2549.0,0.78433]
[1751624420116,0.78432,2549.1,2549.0,0.78433]
[1751624422624,39.57311,2549.2,2549.1,0.78432]
[1751624422926,39.57709,2549.2,2549.1,0.78432]
[1751624423319,38.7928,2549.2,2549.1,0.78432]
[1751624423521,39.57709,2549.2,2549.1,0.78432]
[1751624423718,3.99209,2549.2,2549.1,0.78432]
[1751624424025,39.57409,2549.2,2549.1,0.78432]
[1751624425928,36.36629,2549.2,2549.1,0.78432]
[1751624426628,0.78429,2549.2,2549.1,0.78432]
[1751624426825,5.34975,2549.4,2549.3,0.78426]
[1751624427025,42.11878427,2549.4,2549.3,0.78426]
[1751624429032,0.7843,2549.3,2549.2,0.78427]
[1751624429331,3.30523427,2549.3,2549.2,0.78427]
[1751624429531,2.1152,2549.3,2549.2,0.78427]
[1751624431932,37.6882,2549.3,2549.2,0.78427]
[1751624432134,36.9039,2549.3,2549.2,0.78427]
[1751624432336,36.35726,2549.3,2549.2,0.78427]
[1751624432532,3.99205,2549.4,2549.3,0.78426]
[1751624432732,40.75204583,2549.4,2549.3,0.78426]
[1751624434632,42.16704583,2549.4,2549.3,0.78426]
[1751624435138,0.7843,2549.3,2549.2,0.78426]
[1751624435536,2.1993,2549.3,2549.2,0.78426]
[1751624435737,0.78432,2549.2,2549.1,0.78429]
[1751624436039,38.95800178,2549.2,2549.1,0.78429]
[1751624436838,0.78435,2549.1,2549.0,0.78432]
[1751624437039,2.88285,2549.1,2549.0,0.78432]
[1751624437740,2.0985,2549.1,2549.0,0.78432]
[1751624439741,3.29028404,2549.1,2549.0,0.78435]
[1751624439941,49.91628404,2549.1,2549.0,0.78435]
[1751624441238,50.70060404,2549.1,2549.0,0.78435]
[1751624442344,49.29660404,2549.1,2549.0,0.78435]
[1751624442643,38.27360404,2549.1,2549.0,0.78435]
[1751624444745,37.49028404,2549.1,2549.0,0.78435]
[1751624445145,38.27460404,2549.1,2549.0,0.78435]
[1751624446046,38.26860404,2549.1,2549.0,0.78435]
[1751624448547,1.87528404,2549.1,2549.0,0.78435]
[1751624448746,37.49328404,2549.1,2549.0,0.78435]
[1751624450147,38.27760404,2549.1,2549.0,0.78435]
[1751624450547,37.49328404,2549.1,2549.0,0.78435]
[1751624451649,38.27760404,2549.1,2549.0,0.78435]
[1751624451849,37.49328404,2549.1,2549.0,0.78435]
[1751624454453,38.27760404,2549.1,2549.0,0.78435]
[1751624455655,37.49328404,2549.1,2549.0,0.78435]
[1751624461555,37.46728404,2549.1,2549.0,0.78435]
[1751624462860,1.87528404,2549.1,2549.0,0.78435]
[1751624463159,38.24960404,2549.1,2549.0,0.78435]
[1751624463462,42.46528404,2549.1,2548.6,0.15351519]
[1751624463657,0.7844,2548.9,2548.8,0.78439]
[1751624463858,1.97618404,2548.9,2548.8,0.78439]
[1751624464053,3.36038404,2548.9,2548.8,0.78439]
[1751624464363,2.57598404,2548.9,2548.6,0.15351519]
[1751624464559,0.78445,2548.7,2548.6,0.93797519]
[1751624464858,38.43553,2548.8,2548.7,0.78445]
[1751624465059,37.05133,2548.8,2548.7,0.78445]
[1751624465651,36.2669,2548.8,2548.7,0.78445]
[1751624465858,36.2639,2548.8,2548.7,0.78445]
[1751624466053,0.6419,2548.8,2548.7,0.78445]
[1751624466257,36.2639,2548.8,2548.7,0.78445]
[1751624467664,36.2639,2548.8,2548.7,1.43055]
[1751624468565,36.2639,2548.8,2548.7,0.78445]
[1751624468860,37.4569957,2548.8,2548.7,0.78445]
[1751624473761,35.61,2549.2,2548.7,3.2078]
[1751624473966,35.61,2549.2,2549.1,0.78432]
[1751624474165,36.80355736,2549.2,2549.1,0.78432]
[1751624475461,36.82255736,2549.2,2549.1,0.78432]
[1751624475962,1.19355736,2549.2,2549.1,0.78432]
[1751624476159,36.81955736,2549.2,2549.1,0.78432]
[1751624476769,1.19355736,2549.2,2549.1,0.78432]
[1751624476963,36.82055736,2549.2,2549.1,0.78432]
[1751624477365,35.627,2549.2,2549.1,0.78432]
[1751624477865,0.6569,2549.3,2549.2,0.78429]
[1751624478771,15.01997,2549.6,2549.5,0.7842]
[1751624478772,3.2078,2549.6,2549.5,0.7842]
[1751624478969,40.69434517,2549.6,2549.5,0.7842]
[1751624479970,5.07334517,2549.6,2549.5,0.7842]
[1751624480166,40.69134517,2549.6,2549.5,0.7842]
[1751624480371,5.07334517,2549.6,2549.5,0.7842]
[1751624480766,40.68934517,2549.6,2549.5,0.7842]
[1751624480967,5.07334517,2549.6,2549.5,0.7842]
[1751624482468,3.8857,2549.6,2549.5,0.7842]
[1751624484969,0.6779,2549.6,2549.5,0.7842]
[1751624485169,11.028,2549.8,2549.7,0.78413]
[1751624485473,11.7152,2549.8,2549.7,0.78413]
[1751624485874,0.6872,2549.8,2549.7,0.78413]
[1751624486079,92.112,2550.0,2549.9,0.78407]
[1751624486270,35.62,2550.0,2549.9,0.78407]
[1751624488777,2.72749,2550.2,2550.1,0.78401]
[1751624488970,38.34149,2550.2,2550.1,0.78401]
[1751624489678,2.72749,2550.2,2550.1,0.78401]
[1751624489879,37.5565,2550.2,2550.1,0.78401]
[1751624490078,38.34048,2550.2,2550.1,0.78401]
[1751624495277,37.5565,2550.2,2550.1,0.78401]
[1751624495783,2.72748,2550.2,2550.1,0.78401]
[1751624496083,38.31948,2550.2,2550.1,0.78401]
[1751624499687,37.5355,2550.2,2550.1,0.78401]
[1751624499987,1.9435,2550.2,2550.1,0.78401]
[1751624500285,37.5285,2550.2,2550.1,0.78401]
[1751624500787,38.31248,2550.2,2550.1,0.78401]
[1751624503291,37.5285,2550.2,2550.1,0.78401]
[1751624505186,1.9435,2550.2,2550.1,0.78401]
[1751624505388,37.5125,2550.2,2550.1,0.78401]
[1751624508092,1.9435,2550.2,2550.1,0.78401]
[1751624508294,36.2167,2550.2,2550.1,0.78401]
[1751624514500,37.4013548,2550.2,2550.1,0.78401]
[1751624515198,37.4011715,2550.2,2550.1,0.78401]
[1751624516007,38.1851515,2550.2,2550.1,0.78401]
[1751624516397,37.4011715,2550.2,2550.1,0.78401]
[1751624517096,38.1851515,2550.2,2550.1,0.78401]
[1751624518403,37.4011715,2550.2,2550.1,0.78401]
[1751624521206,38.1851515,2550.2,2550.1,0.78401]
[1751624524007,37.4011715,2550.2,2550.1,0.78401]
[1751624524308,38.1851515,2550.2,2550.1,0.78401]
[1751624525109,37.4011715,2550.2,2550.1,0.78401]
[1751624525802,38.1851515,2550.2,2550.1,0.78401]
[1751624526712,0.78414,2549.8,2549.7,0.78412]
[1751624526907,1.96966643,2549.8,2549.7,0.78412]
[1751624527308,4.04196643,2549.8,2549.7,0.78412]
[1751624528209,0.78416,2549.7,2549.6,0.78413]
[1751624528414,3.33508643,2549.7,2549.6,0.78413]
[1751624528715,38.86308643,2549.7,2549.6,0.78413]
[1751624530512,37.67756,2549.7,2549.6,0.78413]
[1751624530713,36.8934,2549.7,2549.6,0.78413]
[1751624531115,37.67753,2549.7,2549.6,0.78413]
[1751624535520,36.8934,2549.7,2549.2,5.16847]
[1751624535719,1.3943,2549.6,2549.5,0.78418]
[1751624536220,2.17847,2549.6,2549.5,0.78418]
[1751624536419,1.3943,2549.6,2549.5,0.78418]
[1751624537720,1.3943,2549.6,2549.2,3.2078]
[1751624537919,0.7842,2549.5,2549.4,0.78422]
[1751624538120,1.4564,2549.5,2549.4,0.78422]
[1751624538319,0.78423,2549.4,2549.3,0.78423]
[1751624538730,2.15873,2549.4,2549.3,0.78423]
[1751624539227,1.3745,2549.4,2549.3,0.78423]
[1751624546132,2.15873,2549.4,2549.3,0.78423]
[1751624546523,1.3745,2549.4,2549.3,0.78423]
[1751624547734,1.45642,2549.5,2549.4,0.78423]
[1751624548127,0.6722,2549.5,2549.4,0.78423]
[1751624553032,3.2078,2549.7,2549.6,0.78417]
[1751624553236,1.18519325,2549.7,2549.6,0.78417]
[1751624553437,3.2078,2550.0,2549.9,0.78407]
[1751624553642,4.393538,2550.0,2549.9,0.78407]
[1751624554438,3.2078,2550.0,2549.9,0.78407]
[1751624554840,11.032,2550.2,2550.1,0.78401]
[1751624555040,12.21806959,2550.2,2550.1,0.78401]
[1751624555340,11.032,2550.2,2550.1,0.78401]
[1751624557743,0.692,2550.3,2550.2,0.78398]
[1751624558039,1.87782819,2550.3,2550.2,0.78398]
[1751624562235,0.692,2550.3,2550.2,0.78398]
[1751624564941,36.282,2550.3,2550.2,0.78398]
[1751624566140,0.692,2550.3,2550.2,0.78398]
[1751624566340,36.277,2550.3,2550.2,0.78398]
[1751624569146,36.271,2550.3,2550.2,0.78398]
[1751624572550,4.5327,2550.5,2550.4,0.78392]
[1751624572749,41.53349,2550.5,2550.4,0.78392]
[1751624576449,42.71529738,2550.5,2550.4,0.78392]
[1751624576745,1.95981,2550.4,2549.9,3.2078]
[1751624576950,1.95981,2550.4,2550.0,0.784]
[1751624576951,3.99184,2550.1,2550.0,0.784]
[1751624577157,39.55184,2550.1,2550.0,0.784]
[1751624577842,40.87464,2550.1,2550.0,0.784]
[1751624578948,42.05668743,2550.1,2550.0,0.784]
[1751624582247,38.84888743,2550.1,2550.0,0.784]
[1751624582551,0.7841,2550.0,2549.9,0.78405]
[1751624582746,3.36284743,2550.0,2549.9,0.78405]
[1751624584952,3.36284743,2550.0,2549.7,1.96035]
[1751624584953,0.78412,2549.9,2549.8,0.78407]
[1751624585155,39.57886743,2549.9,2549.8,0.78407]
[1751624585452,0.78418,2549.7,2549.6,0.78414]
[1751624585655,36.34014,2549.7,2549.6,0.78414]
[1751624585949,37.52218743,2549.7,2549.6,0.78414]
[1751624586152,38.91918743,2549.7,2549.6,0.78414]
[1751624588150,0.78421,2549.6,2549.5,0.78417]
[1751624588350,1.48171,2549.6,2549.5,0.78417]
[1751624589149,2.86441,2549.6,2549.5,0.78417]
[1751624589352,0.78423,2549.5,2549.4,0.78421]
[1751624589553,37.73293,2549.5,2549.4,0.78421]
[1751624589754,35.566,2549.5,2549.4,0.78421]
[1751624590950,14.2268,2549.8,2549.7,0.78414]
[1751624591146,51.00817143,2549.8,2549.7,0.78414]
[1751624592450,39.98917143,2549.8,2549.7,0.78414]
[1751624592655,1.18437143,2549.8,2549.7,0.78414]
[1751624592845,35.594,2549.8,2549.7,0.78414]
[1751624600061,36.2703,2549.8,2549.7,0.78414]
[1751624603659,3.2078,2550.1,2550.0,0.78405]
[1751624603967,4.39221451,2550.1,2550.0,0.78405]
[1751624604169,38.7818,2550.1,2550.0,0.78405]
[1751624604564,14.2278,2550.4,2550.1,1.96]
[1751624604764,36.75864328,2550.3,2550.2,1.44848]
[1751624604965,35.574,2550.3,2550.2,1.44848]
[1751624605262,36.75892722,2550.3,2550.2,1.44848]
[1751624606464,1.18492722,2550.3,2550.2,1.44848]
[1751624608563,50.58875,2550.4,2550.3,0.78395]
[1751624608764,51.7729401,2550.4,2550.3,0.78395]
[1751624609868,48.5651401,2550.4,2550.3,0.78395]
[1751624610462,49.8556401,2550.4,2550.3,0.78395]
[1751624619175,49.85396598,2550.4,2550.3,0.78395]
[1751624622676,0.78399,2550.3,2550.2,0.78395]
[1751624622977,3.95890598,2550.3,2550.2,0.78395]
[1751624624083,3.17491598,2550.3,2550.2,0.78395]
[1751624628784,3.95886598,2550.3,2550.2,0.78395]
[1751624629289,3.17491598,2550.3,2550.2,0.78395]
[1751624631384,1.87861598,2550.3,2550.2,0.78395]
[1751624631590,37.39961598,2550.3,2550.2,0.78395]
[1751624633386,1.87861598,2550.3,2550.2,0.78395]
[1751624633580,37.39561598,2550.3,2550.2,0.78395]
[1751624634192,37.39461598,2550.3,2550.2,0.78395]
[1751624635386,38.17856598,2550.3,2550.2,0.78395]
[1751624635587,0.78404,2550.2,2550.1,0.78398]
[1751624635788,0.78406,2550.1,2550.0,0.78402]
[1751624635994,37.48557598,2550.1,2550.0,0.78402]
[1751624636291,38.88467598,2550.1,2550.0,0.78402]
[1751624638690,38.10061598,2550.1,2550.0,0.78402]
[1751624639693,38.88462598,2550.1,2550.0,0.78402]
[1751624641194,41.30841598,2550.1,2550.0,0.78402]
[1751624641395,39.90931598,2550.1,2550.0,0.78402]
[1751624641795,36.70151598,2550.1,2550.0,0.78402]
[1751624645402,40.69332598,2550.1,2550.0,0.78402]
[1751624649199,0.7841,2550.0,2549.9,0.78405]
[1751624649500,3.99521598,2550.0,2549.9,0.78405]
[1751624651104,7.20301598,2550.0,2549.9,0.78405]
[1751624653201,0.78414,2549.9,2549.8,0.78408]
[1751624653395,38.87745598,2549.9,2549.8,0.78408]
[1751624653606,0.78416,2549.8,2549.7,0.78412]
[1751624653800,3.35847598,2549.8,2549.7,0.78412]
[1751624660311,0.78419,2549.7,2549.6,0.78414]
[1751624660605,1.96043,2549.6,2549.2,2.66677]
[1751624660909,37.48874598,2549.5,2549.4,0.78418]
[1751624669512,36.70451598,2549.5,2549.4,0.78418]
[1751624670716,37.48871598,2549.5,2549.4,0.78418]
[1751624670917,36.70451598,2549.5,2549.4,0.78418]
[1751624671515,37.48871598,2549.5,2549.4,0.78418]
[1751624671920,36.70451598,2549.5,2549.4,0.78418]
[1751624672217,37.48871598,2549.5,2549.4,0.78418]
[1751624673119,37.48956352,2549.5,2549.4,0.78418]
[1751624679822,36.70536352,2549.5,2549.4,0.78418]
[1751624681519,37.48956352,2549.5,2549.4,0.78418]
[1751624693737,40.69736352,2549.5,2549.4,0.78418]
[1751624697239,41.87372352,2549.5,2549.0,0.6928]
[1751624697443,0.78431,2549.3,2549.2,0.78426]
[1751624697737,37.48967352,2549.3,2549.2,0.78426]
[1751624697938,38.84797352,2549.3,2549.2,0.78426]
[1751624699340,38.85084118,2549.3,2549.2,0.78426]
[1751624706345,49.85684118,2549.3,2549.2,0.78426]
[1751624706547,1.18623118,2549.3,2549.2,0.78426]
[1751624706748,36.70923118,2549.3,2549.2,0.78426]
[1751624707047,1.18623118,2549.3,2549.2,0.78426]
[1751624707449,1.18623118,2549.3,2549.2,2.07856]
[1751624708448,35.523,2549.4,2549.3,0.78426]
[1751624708649,36.70953413,2549.4,2549.3,1.44556]
[1751624713250,37.36243413,2549.4,2549.3,1.44556]
[1751624714652,38.14666413,2549.4,2549.3,1.44556]
[1751624715849,37.36243413,2549.4,2549.3,1.44556]
[1751624716050,38.14666413,2549.4,2549.3,1.44556]
[1751624717655,37.36243413,2549.4,2549.3,1.44556]
[1751624718257,38.14666413,2549.4,2549.3,1.44556]
[1751624719755,37.36243413,2549.4,2549.3,1.44556]
[1751624720456,38.14666413,2549.4,2549.3,1.44556]
[1751624721456,37.36243413,2549.4,2549.3,1.44556]
[1751624721855,38.14666413,2549.4,2549.3,1.44556]
[1751624722057,37.36243413,2549.4,2549.3,1.44556]
[1751624725464,38.14666413,2549.4,2549.3,1.44556]
[1751624725660,37.36243413,2549.4,2549.3,1.44556]
[1751624726164,38.14666413,2549.4,2549.3,1.44556]
[1751624726564,37.36243413,2549.4,2549.3,1.44556]
[1751624726763,38.14666413,2549.4,2549.3,1.44556]
[1751624728967,37.36243413,2549.4,2549.3,1.44556]
[1751624732670,1.83943413,2549.4,2549.3,1.44556]
[1751624732969,36.70253413,2549.4,2549.3,1.44556]
[1751624736973,37.48676413,2549.4,2549.3,1.44556]
[1751624737376,36.70253413,2549.4,2549.3,1.44556]
[1751624737674,36.70253413,2549.4,2549.3,0.78426]
[1751624738071,37.99683413,2549.4,2549.3,0.78426]
[1751624738676,38.78106413,2549.4,2549.3,0.78426]
[1751624738976,37.99683413,2549.4,2549.3,0.78426]
[1751624739675,38.78106413,2549.4,2549.3,0.78426]
[1751624746577,37.99683413,2549.4,2549.3,0.78426]
[1751624746882,38.78106413,2549.4,2549.3,0.78426]
[1751624747284,37.99683413,2549.4,2549.3,0.78426]
[1751624748084,38.78106413,2549.4,2549.3,0.78426]
[1751624748688,37.99683413,2549.4,2549.3,0.78426]
[1751624749088,38.78106413,2549.4,2549.3,0.78426]
[1751624751390,37.99683413,2549.4,2549.3,0.78426]
[1751624751586,36.70253413,2549.4,2549.3,0.78426]
[1751624751781,36.69753413,2549.4,2549.3,0.78426]
[1751624760389,1.18653413,2549.4,2549.3,0.78426]
[1751624760591,36.157,2549.5,2549.4,0.78423]
[1751624760793,37.3437225,2549.5,2549.4,0.78423]
[1751624762498,1.8347225,2549.5,2549.4,0.78423]
[1751624762699,36.157,2549.5,2549.4,0.78423]
[1751624762895,0.78408,2549.9,2549.8,0.78408]
[1751624763199,49.18125867,2549.9,2549.8,0.78411]
[1751624763600,50.52905867,2549.9,2549.8,0.78411]
[1751624765404,39.52405867,2549.9,2549.8,0.78411]
[1751624765701,4.01805867,2549.9,2549.8,0.78411]
[1751624766001,39.52405867,2549.9,2549.8,0.78411]
[1751624766302,37.39117867,2549.9,2549.8,0.78411]
[1751624768898,1.88617867,2549.9,2549.8,0.78411]
[1751624769299,1.18607867,2549.9,2549.8,0.78411]
[1751624769505,38.7108,2550.0,2549.9,0.78408]
[1751624769803,4.39152218,2550.0,2549.9,0.78408]
[1751624770202,1.18372218,2550.0,2549.9,0.78408]
[1751624770502,0.6551,2550.2,2550.0,0.78405]
[1751624770503,35.503,2550.1,2550.0,0.78405]
[1751624770704,36.68580478,2550.1,2550.0,0.78405]
[1751624771004,1.18280478,2550.1,2550.0,0.78405]
[1751624771208,36.1571,2550.2,2550.1,0.78401]
[1751624771405,37.33953749,2550.2,2550.1,0.78401]
[1751624771806,1.83753749,2550.2,2550.1,0.78401]
[1751624772001,1.18243749,2550.2,2550.1,0.78401]
[1751624772202,36.68443749,2550.2,2550.1,0.78401]
[1751624772500,1.18243749,2550.2,2550.1,0.78401]
[1751624773700,0.6521,2550.4,2550.3,0.78395]
[1751624773902,38.68380569,2550.4,2550.3,0.78395]
[1751624775099,39.46772569,2550.4,2550.3,0.78395]
[1751624776205,38.68380569,2550.4,2550.3,0.78395]
[1751624776602,39.46772569,2550.4,2550.3,0.78395]
[1751624778107,38.68380569,2550.4,2550.3,0.78395]
[1751624779209,39.46772569,2550.4,2550.3,0.78395]
[1751624780310,38.28622,2550.4,2550.3,0.78395]
[1751624781012,37.5023,2550.4,2550.3,0.78395]
[1751624781211,38.28622,2550.4,2550.3,0.78395]
[1751624781709,37.5023,2550.4,2550.3,0.78395]
[1751624782114,38.28622,2550.4,2550.3,0.78395]
[1751624783313,39.46343552,2550.4,2550.3,0.78395]
[1751624783612,38.28622,2550.4,2550.3,0.78395]
[1751624784415,39.46298632,2550.4,2550.3,0.78395]
[1751624786214,38.67906632,2550.4,2550.3,0.78395]
[1751624786517,38.67006632,2550.4,2550.3,0.78395]
[1751624786716,39.45398632,2550.4,2550.3,0.78395]
[1751624786912,38.27722,2550.4,2550.3,0.78395]
[1751624788011,37.4933,2550.4,2550.3,0.78395]
[1751624788414,38.67081893,2550.4,2550.3,0.78395]
[1751624788612,37.4933,2550.4,2550.3,0.78395]
[1751624789014,38.27722,2550.4,2550.3,0.78395]
[1751624789413,39.45509465,2550.4,2550.3,0.78395]
[1751624790116,38.27722,2550.4,2550.3,0.78395]
[1751624790318,39.45527698,2550.4,2550.3,0.78395]
[1751624790915,38.67135698,2550.4,2550.3,0.78395]
[1751624791117,39.45528698,2550.4,2550.3,0.78395]
[1751624793222,38.67135698,2550.4,2550.3,0.78395]
[1751624793520,39.45528698,2550.4,2550.3,0.78395]
[1751624794225,38.67135698,2550.4,2550.3,0.78395]
[1751624795224,39.45528698,2550.4,2550.3,0.78395]
[1751624797625,39.45128698,2550.4,2550.3,0.78395]
[1751624798225,38.66735698,2550.4,2550.3,0.78395]
[1751624800014,39.45128698,2550.4,2550.3,0.78395]
[1751624800214,38.66735698,2550.4,2550.3,0.78395]
[1751624801127,39.45128698,2550.4,2550.3,0.78395]
[1751624801425,38.66735698,2550.4,2550.3,0.78395]
[1751624802430,1.83015698,2550.4,2550.3,0.78395]
[1751624802627,37.31415698,2550.4,2550.3,0.78395]
[1751624803818,1.17805698,2550.4,2550.3,0.78395]
[1751624804023,1.17805698,2550.4,2550.3,1.47625]
[1751624805125,38.6908,2550.6,2550.5,0.7839]
[1751624805329,39.87176526,2550.6,2550.5,0.7839]
[1751624808231,36.66396526,2550.6,2550.5,0.7839]
[1751624808431,39.87176526,2550.6,2550.5,0.7839]
[1751624808736,36.66396526,2550.6,2550.5,0.7839]
[1751624808927,39.87176526,2550.6,2550.5,0.7839]
[1751624809735,41.94853526,2550.6,2550.5,0.7839]
[1751624814233,0.78396,2550.4,2550.3,0.7839]
[1751624814531,37.44292526,2550.4,2550.3,0.7839]
[1751624814928,0.78402,2550.2,2550.1,0.78398]
[1751624815235,0.7841,2550.0,2549.9,0.78405]
[1751624815433,39.4699,2550.0,2549.9,0.78405]
[1751624815632,40.64892188,2550.0,2549.9,0.78405]
[1751624815832,42.01452188,2550.0,2549.9,0.78405]
[1751624819934,41.23042188,2550.0,2549.9,0.78405]
[1751624821737,42.01447188,2550.0,2549.9,0.78405]
[1751624823039,41.23042188,2550.0,2549.9,0.78405]
[1751624828344,0.6602,2550.1,2550.0,0.78405]
[1751624828848,11.6566,2550.4,2550.3,0.78396]
[1751624829050,48.96440602,2550.4,2550.3,0.78396]
[1751624829350,48.57003,2550.4,2550.3,0.78396]
[1751624829549,49.93403,2550.4,2550.3,0.78396]
[1751624829856,49.1501,2550.4,2550.3,0.78396]
[1751624830055,50.32851881,2550.4,2550.3,0.78396]
[1751624831356,51.11244881,2550.4,2550.3,0.78396]
[1751624832248,50.32851881,2550.4,2550.3,0.78396]
[1751624832949,50.32651881,2550.4,2550.3,0.78396]
[1751624833350,51.11044881,2550.4,2550.3,0.78396]
[1751624836758,50.44984881,2550.4,2550.3,0.78396]
[1751624851274,39.45384881,2550.4,2550.3,0.78396]
[1751624851872,39.44684881,2550.4,2550.3,0.78396]
[1751624854972,38.66291881,2550.4,2550.3,0.78396]
[1751624855177,39.44684881,2550.4,2550.3,0.78396]
[1751624855576,38.66291881,2550.4,2550.3,0.78396]
[1751624855777,37.29891881,2550.4,2550.3,0.78396]
[1751624858574,1e-08,2550.4,2550.3,5.78396]
[1751624858780,3.2078,2550.8,2550.7,0.78384]
[1751624859079,3.8915,2550.8,2550.7,0.78384]
[1751624860380,39.3625,2550.8,2550.7,0.78384]
[1751624861281,40.14631,2550.8,2550.7,0.78384]
[1751624861480,39.3625,2550.8,2550.7,0.78384]
[1751624861681,40.14631,2550.8,2550.7,0.78384]
[1751624861981,39.3625,2550.8,2550.7,0.78384]
[1751624862480,40.14631,2550.8,2550.7,0.78384]
[1751624863581,39.3625,2550.8,2550.7,0.78384]
[1751624865780,3.2078,2550.8,2550.7,0.78384]
[1751624866084,38.6748,2550.8,2550.7,0.78384]
[1751624868094,3.2078,2550.8,2550.7,0.78384]
[1751624870588,4.37262084,2550.8,2550.7,0.78384]
[1751624873188,3.2078,2550.8,2550.7,0.78384]
[1751624877998,40.11797,2551.0,2550.9,0.78378]
[1751624878294,41.28254909,2551.0,2550.9,0.78378]
[1751624879095,38.07474909,2551.0,2550.9,0.78378]
[1751624879394,41.28254909,2551.0,2550.9,0.78378]
[1751624880994,41.28254909,2551.0,2550.7,0.78381]
[1751624880995,0.78384,2550.8,2550.7,0.78381]
[1751624881293,37.40941909,2550.8,2550.7,0.78381]
[1751624881495,38.80971909,2550.8,2550.7,0.78381]
[1751624882399,0.78387,2550.7,2550.6,0.78384]
[1751624882599,3.96334909,2550.7,2550.6,0.78384]
[1751624883596,0.78393,2550.5,2550.4,0.78389]
[1751624883899,1.94909881,2550.5,2550.4,0.78389]
[1751624884502,3.30469881,2550.5,2550.4,0.78389]
[1751624890410,6.51249881,2550.5,2550.4,0.78389]
[1751624891710,3.30469881,2550.5,2550.4,0.78389]
[1751624891911,6.51249881,2550.5,2550.4,0.78389]
[1751624897112,5.34733,2550.5,2550.4,0.78389]
[1751624897316,6.51010042,2550.5,2550.4,0.78389]
[1751624900416,3.30230042,2550.5,2550.4,0.78389]
[1751624900619,6.51010042,2550.5,2550.4,0.78389]
[1751624903818,5.34733,2550.5,2550.4,0.78389]
[1751624904017,6.5102466,2550.5,2550.4,0.78389]
[1751624904517,5.7263166,2550.5,2550.4,0.78389]
[1751624906922,4.3707166,2550.5,2550.4,0.78389]
[1751624908917,1.1629166,2550.5,2550.4,0.78389]
[1751624909419,1.1629166,2550.5,2550.4,7.13699]
[1751624909920,3.2078,2550.8,2550.7,0.78384]
[1751624910117,4.37124289,2550.8,2550.7,0.78384]
[1751624912722,1.16344289,2550.8,2550.7,0.78384]
[1751624914617,3.8878,2551.2,2551.1,0.78372]
[1751624914822,40.5097043,2551.2,2551.1,0.78372]
[1751624917018,3.2078,2551.5,2551.4,0.78362]
[1751624918323,38.7778,2551.5,2550.9,0.6871]
[1751624918524,2.83313,2551.4,2551.3,0.78365]
[1751624921528,0.78372,2551.2,2551.1,0.78369]
[1751624921917,36.35172,2551.2,2551.1,0.78369]
[1751624922225,37.73382,2551.2,2551.1,0.78369]
[1751624923527,36.9501,2551.2,2551.1,0.78369]
[1751624925426,37.73378,2551.2,2551.1,0.78369]
[1751624928825,40.94158,2551.2,2551.1,0.78369]
[1751624930232,0.78378,2551.0,2550.9,0.78373]
[1751624930826,0.71,2551.0,2550.9,0.78373]
[1751624931327,2.0729,2551.0,2550.9,0.78373]
[1751624932032,6.06445,2551.0,2550.9,0.78373]
[1751624937331,7.21359613,2551.0,2550.9,0.78373]
[1751624938636,6.42984613,2551.0,2550.9,0.78373]
[1751624939136,7.21359613,2551.0,2550.9,0.78373]
[1751624939833,4.00579613,2551.0,2550.9,0.78373]
[1751624940033,7.21359613,2551.0,2550.9,0.78373]
[1751624941034,6.42984613,2551.0,2550.9,0.78373]
[1751624941230,7.21359613,2551.0,2550.9,0.78373]
[1751624941933,6.42984613,2551.0,2550.9,0.78373]
[1751624942638,3.22204613,2551.0,2550.9,0.78373]
[1751624942834,6.42984613,2551.0,2550.9,0.78373]
[1751624943234,7.21359613,2551.0,2550.9,0.78373]
[1751624944237,6.42984613,2551.0,2550.9,0.78373]
[1751624944737,5.06694613,2551.0,2550.9,0.78373]
[1751624944937,5.85069613,2551.0,2550.9,0.78373]
[1751624945437,2.64289613,2551.0,2550.9,0.78373]
[1751624945637,5.85069613,2551.0,2550.9,0.78373]
[1751624947438,5.06694613,2551.0,2550.9,0.78373]
[1751624948438,5.85069613,2551.0,2550.9,0.78373]
[1751624949142,5.06694613,2551.0,2550.9,0.78373]
[1751624950039,1.85914613,2551.0,2550.9,0.78373]
[1751624950242,5.06694613,2551.0,2550.9,0.78373]
[1751624950439,5.85069613,2551.0,2550.9,0.78373]
[1751624950742,5.06694613,2551.0,2550.9,0.78373]
[1751624951942,1.85914613,2551.0,2550.9,0.78373]
[1751624952144,5.06694613,2551.0,2550.9,0.78373]
[1751624952344,5.85069613,2551.0,2550.9,0.78373]
[1751624953445,5.06694613,2551.0,2550.9,0.78373]
[1751624953745,5.85069613,2551.0,2550.9,0.78373]
[1751624959848,2.64289613,2551.0,2550.9,0.78373]
[1751624960050,5.85069613,2551.0,2550.9,0.78373]
[1751624960348,2.64289613,2551.0,2550.9,0.78373]